bitfinex/quotes_SOLUSD_20250529
["timestamp","ask_amount","ask_price","bid_price","bid_amount"]
[1748518112171,0.28432314,173.3,173.26,5.91375744]
[1748518112982,8.09047542,173.3,173.26,0.14216157]
[1748518114205,0.28432314,173.3,173.26,0.14216157]
[1748518114691,0.28432314,173.3,173.26,5.91372222]
[1748518116417,8.09047542,173.3,173.25,0.14216157]
[1748518116987,0.28432314,173.3,173.25,7.94831385]
[1748518117286,0.28432314,173.3,173.27,0.14216157]
[1748518117503,0.28432314,173.3,173.27,7.94831385]
[1748518121395,0.28432314,173.3,173.26,7.94831385]
[1748518122886,0.28432314,173.3,173.27,0.14216157]
[1748518124693,18.933972,173.32,173.27,0.14216157]
[1748518124902,7.80615228,173.31,173.27,0.14216157]
[1748518125283,7.80615228,173.31,173.25,7.94831385]
[1748518126977,7.80615228,173.31,173.27,0.14216157]
[1748518130598,0.28432314,173.3,173.26,0.14216157]
[1748518132083,0.28432314,173.3,173.26,7.80615228]
[1748518133898,0.28432314,173.31,173.27,0.14216157]
[1748518135690,8.09047542,173.31,173.26,0.14216157]
[1748518138109,5.77044731,173.3,173.26,0.14216157]
[1748518139385,5.77044731,173.3,173.25,0.14216157]
[1748518139606,5.77044731,173.3,173.25,7.94831385]
[1748518140688,153.07044731,173.3,173.25,7.94831385]
[1748518141801,160.87659959,173.3,173.24,0.14216157]
[1748518142108,160.87659959,173.3,173.26,0.14216157]
[1748518142485,169.99659959,173.3,173.26,0.14216157]
[1748518147286,169.99659959,173.3,173.24,7.94831385]
[1748518150508,169.99659959,173.3,173.26,0.14216157]
[1748518155203,169.99659959,173.3,173.24,7.94831385]
[1748518156895,162.19044731,173.3,173.24,7.94831385]
[1748518157214,169.99659959,173.3,173.24,7.94831385]
[1748518157414,162.19044731,173.3,173.26,0.14216157]
[1748518164799,162.19044731,173.3,173.24,7.94831385]
[1748518165201,162.19044731,173.3,173.24,0.14216157]
[1748518165421,162.19044731,173.3,173.24,7.94831385]
[1748518170038,162.19044731,173.3,173.24,13.72064936]
[1748518178215,162.19044731,173.3,173.24,7.94831385]
[1748518178943,162.19044731,173.3,173.24,0.14216157]
[1748518181142,162.19044731,173.3,173.24,7.94831385]
[1748518181313,18.933972,173.29,173.21,26.0]
[1748518181523,18.933972,173.29,173.23,7.94831385]
[1748518181524,26.74012428,173.29,173.23,7.94831385]
[1748518181732,26.74012428,173.29,173.24,0.14216157]
[1748518182531,5.77100646,173.28,173.25,0.14216157]
[1748518192348,0.28432314,173.26,173.25,0.14216157]
[1748518192974,0.28432314,173.26,173.23,7.94831385]
[1748518199047,0.28432314,173.26,173.23,7.80615228]
[1748518199247,7.80615228,173.25,173.18,5.77433063]
[1748518199473,0.14216157,173.25,173.21,0.14216157]
[1748518199661,0.14216157,173.25,173.21,7.94831385]
[1748518200361,0.14216157,173.25,173.21,13.7216372]
[1748518200578,0.14216157,173.25,173.23,0.14216157]
[1748518201160,5.91424387,173.25,173.22,0.14216157]
[1748518201377,0.14216157,173.25,173.22,0.14216157]
[1748518203363,0.28432314,173.26,173.24,0.14216157]
[1748518204186,0.14216157,173.26,173.25,0.14216157]
[1748518207494,0.14216157,173.26,173.24,0.14216157]
[1748518209998,100.0,173.27,173.26,0.14216157]
[1748518210167,100.14216157,173.27,173.26,0.14216157]
[1748518210565,100.14216157,173.27,173.26,7.94831385]
[1748518210970,100.0,173.27,173.26,7.94831385]
[1748518212171,100.0,173.27,173.26,13.71998648]
[1748518213689,100.0,173.27,173.26,5.9138342]
[1748518213989,100.0,173.27,173.26,13.71998648]
[1748518215790,100.0,173.27,173.26,0.14216157]
[1748518216089,100.0,173.27,173.26,7.94831385]
[1748518216965,100.0,173.27,173.26,13.71998648]
[1748518218689,100.0,173.27,173.26,13.86214805]
[1748518219387,100.0,173.27,173.26,39.86214805]
[1748518219388,41.62100474,173.27,173.26,39.86214805]
[1748518219596,41.62100474,173.27,173.26,75.08214805]
[1748518222387,0.14216157,173.34,173.27,0.28432314]
[1748518222593,0.14216157,173.34,173.33,7.94831385]
[1748518223176,0.14216157,173.34,173.33,0.14216157]
[1748518223377,0.14216157,173.34,173.33,7.94831385]
[1748518223602,0.14216157,173.34,173.33,0.14216157]
[1748518223773,0.14216157,173.34,173.33,7.94831385]
[1748518226006,182.5,173.38,173.34,0.14216157]
[1748518226217,182.5,173.38,173.34,7.94831385]
[1748518226370,0.28432314,173.37,173.35,7.80615228]
[1748518226570,0.14216157,173.37,173.34,13.71725264]
[1748518227009,0.28432314,173.37,173.34,7.94831385]
[1748518227306,8.09047542,173.37,173.31,0.14216157]
[1748518227512,0.28432314,173.37,173.34,0.14216157]
[1748518228108,0.14216157,173.37,173.36,0.14216157]
[1748518228271,147.3,173.38,173.36,7.94831385]
[1748518228477,147.3,173.38,173.36,0.14216157]
[1748518229409,147.3,173.38,173.36,7.94831385]
[1748518229583,147.44216157,173.38,173.37,0.14216157]
[1748518232212,147.44216157,173.38,173.35,7.80615228]
[1748518232393,147.44216157,173.38,173.36,0.14216157]
[1748518233220,153.20998874,173.38,173.36,0.14216157]
[1748518233595,0.28432314,173.37,173.35,0.14216157]
[1748518234199,0.28432314,173.37,173.33,7.80615228]
[1748518234517,0.28432314,173.37,173.34,0.14216157]
[1748518235018,0.28432314,173.37,173.3,0.14216157]
[1748518235215,0.14216157,173.35,173.34,0.14216157]
[1748518235919,0.14216157,173.35,173.33,0.14216157]
[1748518236513,5.76900888,173.34,173.33,0.14216157]
[1748518238598,5.91094013,173.35,173.34,0.14216157]
[1748518243827,5.91094013,173.35,173.33,0.14216157]
[1748518245498,5.76708533,173.4,173.34,0.14216157]
[1748518245699,5.76708533,173.4,173.33,0.14216157]
[1748518245942,13.57323761,173.4,173.37,0.14216157]
[1748518246220,0.14216157,173.39,173.37,0.14216157]
[1748518246429,0.14216157,173.38,173.36,0.14216157]
[1748518246621,7.94831385,173.38,173.36,0.14216157]
[1748518247193,5.76801061,173.37,173.34,0.14216157]
[1748518247394,0.28432314,173.36,173.34,0.14216157]
[1748518247823,0.28432314,173.36,173.33,0.14216157]
[1748518249536,5.76867608,173.35,173.33,0.14216157]
[1748518250410,0.14216157,173.34,173.32,0.14216157]
[1748518251394,5.76934171,173.33,173.31,0.14216157]
[1748518257530,5.76934171,173.33,173.31,7.94831385]
[1748518261538,5.76934171,173.33,173.31,0.14216157]
[1748518268835,5.76934171,173.33,173.3,0.14216157]
[1748518269042,5.76934171,173.33,173.3,7.94831385]
[1748518269739,5.76934171,173.33,173.31,0.14216157]
[1748518272346,5.76934171,173.33,173.27,0.14216157]
[1748518272555,5.76934171,173.33,173.31,0.14216157]
[1748518274751,0.28432314,173.32,173.28,7.80615228]
[1748518274917,5.7700075,173.31,173.28,0.14216157]
[1748518275315,7.94831385,173.29,173.28,0.14216157]
[1748518275541,7.94831385,173.29,173.26,0.14216157]
[1748518275747,7.80615228,173.28,173.26,0.14216157]
[1748518276125,7.80615228,173.28,173.24,0.14216157]
[1748518276332,0.14216157,173.28,173.24,7.94831385]
[1748518277040,5.91346268,173.28,173.24,7.94831385]
[1748518277441,5.77040468,173.3,173.28,0.14216157]
[1748518277703,5.77007098,173.31,173.28,0.14216157]
[1748518279833,13.57622326,173.31,173.27,0.14216157]
[1748518280753,13.57622326,173.31,173.26,0.14216157]
[1748518280950,0.14216157,173.3,173.26,0.14216157]
[1748518281263,7.94831385,173.3,173.25,0.14216157]
[1748518281678,5.77067343,173.29,173.25,7.94831385]
[1748518283588,5.91225954,173.31,173.29,0.14216157]
[1748518285050,5.91225954,173.31,173.28,0.14216157]
[1748518285238,5.91225954,173.31,173.28,7.94831385]
[1748518286064,5.91225954,173.31,173.29,0.14216157]
[1748518286283,153.06975496,173.32,173.29,0.14216157]
[1748518286572,147.3,173.32,173.29,12.34108675]
[1748518287252,5.76945421,173.33,173.29,12.34108675]
[1748518289260,5.76903067,173.34,173.31,0.14216157]
[1748518290044,5.76903067,173.34,173.3,0.14216157]
[1748518294190,156.46,173.36,173.32,0.14216157]
[1748518294341,174.42734261,173.36,173.32,0.14216157]
[1748518295353,165.26734261,173.36,173.32,0.14216157]
[1748518296547,153.06841743,173.36,173.32,0.14216157]
[1748518296746,165.26734261,173.36,173.32,0.14216157]
[1748518297167,165.26734261,173.36,173.3,0.14216157]
[1748518297369,165.26734261,173.36,173.32,0.14216157]
[1748518301179,165.26734261,173.36,173.31,0.14216157]
[1748518301351,165.26734261,173.36,173.31,12.34108675]
[1748518301856,12.19892518,173.35,173.31,0.14216157]
[1748518303379,17.96783338,173.35,173.31,0.14216157]
[1748518304583,12.19892518,173.33,173.28,0.14216157]
[1748518304885,12.19892518,173.33,173.28,12.34108675]
[1748518305677,5.76967459,173.32,173.28,12.34108675]
[1748518306067,5.76967459,173.32,173.3,0.14216157]
[1748518308385,5.76934171,173.33,173.3,0.14216157]
[1748518311000,7.80667023,173.32,173.29,0.14216157]
[1748518311371,7.80667023,173.31,173.29,0.14216157]
[1748518311565,7.80667023,173.31,173.27,0.14216157]
[1748518312283,5.77012456,173.31,173.28,0.14216157]
[1748518312994,7.80667023,173.33,173.29,0.14216157]
[1748518313171,5.76944226,173.33,173.29,7.9488318]
[1748518314285,147.3,173.36,173.31,0.14216157]
[1748518314611,153.06840486,173.36,173.32,0.14216157]
[1748518315268,153.06840486,173.36,173.33,0.14216157]
[1748518317572,147.3,173.36,173.33,0.14216157]
[1748518317777,147.3,173.36,173.34,0.14216157]
[1748518318000,8.09099337,173.38,173.34,12.33184439]
[1748518318001,5.90992374,173.38,173.34,12.33184439]
[1748518318591,0.14216157,173.38,173.34,12.33184439]
[1748518318793,15.02736518,173.39,173.34,12.33184439]
[1748518321210,15.02736518,173.39,173.36,0.14216157]
[1748518321707,5.76736518,173.39,173.36,0.14216157]
[1748518322117,5.76706411,173.4,173.37,0.14216157]
[1748518322286,17.95674693,173.4,173.37,0.14216157]
[1748518322682,12.18968282,173.38,173.36,0.14216157]
[1748518323084,18.099855,173.37,173.31,35.26]
[1748518323329,12.18968282,173.36,173.32,0.14216157]
[1748518326001,5.76867608,173.35,173.32,0.14216157]
[1748518330243,12.18968282,173.36,173.32,0.14216157]
[1748518330441,5.76840606,173.36,173.32,12.33184439]
[1748518332891,12.18968282,173.37,173.32,12.33184439]
[1748518333097,17.95745381,173.38,173.34,0.14216157]
[1748518333692,17.95745381,173.38,173.32,12.33184439]
[1748518334428,12.18968282,173.37,173.32,12.33184439]
[1748518335832,17.95797812,173.37,173.32,12.33184439]
[1748518336330,17.95797812,173.37,173.32,0.14216157]
[1748518336331,12.18968282,173.35,173.32,0.14216157]
[1748518336632,12.18968282,173.34,173.31,0.14216157]
[1748518337007,12.18968282,173.34,173.3,0.14216157]
[1748518337841,5.76934171,173.33,173.3,0.14216157]
[1748518341945,7.80599502,173.34,173.3,0.14216157]
[1748518343046,13.57531777,173.34,173.3,0.14216157]
[1748518352783,5.76932275,173.34,173.3,0.14216157]
[1748518353253,5.76874293,173.35,173.3,7.94815659]
[1748518353427,5.76874293,173.35,173.32,0.14216157]
[1748518353627,5.76845137,173.36,173.33,0.14216157]
[1748518356154,13.57444639,173.36,173.3,0.28432314]
[1748518356452,13.57444639,173.36,173.32,0.14216157]
[1748518357766,5.76845137,173.36,173.32,0.14216157]
[1748518358062,13.57444639,173.36,173.32,0.14216157]
[1748518359636,13.57409422,173.37,173.32,7.94815659]
[1748518360361,13.57409422,173.37,173.34,0.14216157]
[1748518360362,5.7680992,173.37,173.34,0.14216157]
[1748518360662,5.7680992,173.37,173.34,7.94815659]
[1748518360866,161.01580387,173.39,173.34,7.94815659]
[1748518361432,160.8736423,173.39,173.34,7.94815659]
[1748518363470,7.80599502,173.38,173.33,8.09031816]
[1748518364773,13.5738753,173.38,173.33,8.09031816]
[1748518365565,5.76788028,173.38,173.33,8.09031816]
[1748518365750,13.5738753,173.38,173.33,0.28432314]
[1748518365940,13.5738753,173.38,173.33,8.09031816]
[1748518369258,5.90917425,173.4,173.33,8.09031816]
[1748518369465,7.80599502,173.38,173.33,8.09031816]
[1748518370168,5.90917425,173.4,173.33,8.09031816]
[1748518370356,13.57392696,173.38,173.35,0.14216157]
[1748518371885,13.57334031,173.39,173.35,0.14216157]
[1748518372790,13.57334031,173.39,173.33,0.28432314]
[1748518372791,7.80599502,173.38,173.33,0.28432314]
[1748518372990,7.80599502,173.38,173.35,0.14216157]
[1748518374380,13.57400563,173.37,173.33,0.14216157]
[1748518376972,7.80599502,173.36,173.33,0.14216157]
[1748518378467,5.76867608,173.35,173.33,0.14216157]
[1748518383798,5.76834333,173.36,173.33,0.14216157]
[1748518384092,13.57433835,173.36,173.33,0.14216157]
[1748518391482,5.76834333,173.36,173.33,0.14216157]
[1748518397298,5.76801061,173.37,173.33,0.14216157]
[1748518397483,5.91017218,173.37,173.33,0.14216157]
[1748518397685,5.91017218,173.37,173.33,7.94815659]
[1748518398406,9.35439502,173.41,173.37,0.14216157]
[1748518398611,15.12133444,173.41,173.37,0.14216157]
[1748518399300,7.80599502,173.4,173.36,0.14216157]
[1748518399610,13.57334031,173.39,173.36,0.14216157]
[1748518399789,13.57334031,173.39,173.35,0.14216157]
[1748518402697,5.76734529,173.39,173.35,0.14216157]
[1748518402890,13.57334031,173.39,173.35,0.14216157]
[1748518404713,5.76734529,173.39,173.35,0.14216157]
[1748518405018,5.76734529,173.39,173.36,0.14216157]
[1748518405409,5.76706363,173.4,173.37,0.14216157]
[1748518408607,13.57279096,173.41,173.37,0.14216157]
[1748518409811,5.76679594,173.41,173.37,0.14216157]
[1748518410018,13.57279096,173.41,173.37,0.14216157]
[1748518411423,7.80599502,173.4,173.37,0.14216157]
[1748518411638,7.80599502,173.4,173.36,0.14216157]
[1748518411933,5.76679594,173.41,173.36,0.14216157]
[1748518412113,13.57279096,173.41,173.37,0.14216157]
[1748518417539,5.76679594,173.41,173.37,7.94815659]
[1748518417737,13.57279096,173.41,173.36,7.94815659]
[1748518420797,7.80599502,173.4,173.35,0.14216157]
[1748518421032,7.80599502,173.4,173.35,7.94815659]
[1748518421213,5.76679594,173.41,173.35,7.94815659]
[1748518421414,13.57279096,173.41,173.35,7.94815659]
[1748518424032,5.76679594,173.41,173.35,7.94815659]
[1748518424208,13.57279096,173.41,173.35,7.94815659]
[1748518425129,0.14216157,173.41,173.35,33.94815659]
[1748518425320,7.94815659,173.41,173.35,33.94815659]
[1748518425516,0.14216157,173.41,173.35,33.94815659]
[1748518425729,7.94815659,173.41,173.35,33.94815659]
[1748518426730,5.76701268,173.4,173.35,33.94815659]
[1748518429336,13.5730077,173.4,173.35,33.94815659]
[1748518430423,5.76701268,173.4,173.35,33.94815659]
[1748518431650,7.80599502,173.39,173.35,26.14216157]
[1748518431852,5.76767793,173.38,173.35,26.14216157]
[1748518435331,0.14216157,173.39,173.35,26.14216157]
[1748518435537,7.94815659,173.39,173.35,26.14216157]
[1748518437636,13.71581547,173.39,173.35,26.14216157]
[1748518441015,7.80599502,173.37,173.33,0.14216157]
[1748518442130,5.76834333,173.36,173.33,0.14216157]
[1748518443052,5.76834333,173.36,173.33,7.94815659]
[1748518443222,5.76809467,173.37,173.33,7.94815659]
[1748518444472,5.76701268,173.4,173.36,0.14216157]
[1748518444759,147.3,173.41,173.38,0.14216157]
[1748518444935,155.10599502,173.41,173.38,0.14216157]
[1748518445254,7.94815659,173.39,173.36,0.14216157]
[1748518445450,7.80599502,173.38,173.36,0.14216157]
[1748518446337,5.76801061,173.37,173.33,0.14216157]
[1748518450052,5.7673878,173.39,173.35,0.14216157]
[1748518450247,5.7673878,173.39,173.36,0.14216157]
[1748518450450,7.80599502,173.37,173.36,0.14216157]
[1748518450959,7.80599502,173.38,173.33,0.14216157]
[1748518452035,5.76801061,173.37,173.33,0.14216157]
[1748518453132,5.76801061,173.37,173.33,7.94815659]
[1748518454328,0.14216157,173.38,173.33,7.94815659]
[1748518455447,5.76801061,173.37,173.33,7.94815659]
[1748518456668,5.76801061,173.37,173.35,0.14216157]
[1748518458586,7.80599502,173.4,173.35,0.14216157]
[1748518458872,5.7673763,173.39,173.35,7.94815659]
[1748518463466,5.7673763,173.39,173.35,0.14216157]
[1748518463770,7.94815659,173.36,173.35,0.14216157]
[1748518463952,7.94815659,173.36,173.25,0.14216157]
[1748518463953,0.28432314,173.35,173.25,0.14216157]
[1748518464151,7.80599502,173.32,173.25,0.14216157]
[1748518464342,7.80599502,173.32,173.26,7.94815659]
[1748518464552,7.80599502,173.31,173.26,7.94815659]
[1748518465073,7.80599502,173.33,173.28,0.14216157]
[1748518465665,5.76967459,173.32,173.26,0.14216157]
[1748518465857,5.76967459,173.32,173.28,0.14216157]
[1748518466245,7.94815659,173.29,173.24,7.80599502]
[1748518466444,7.80599502,173.28,173.25,0.14216157]
[1748518466947,7.80599502,173.28,173.24,0.14216157]
[1748518467742,5.77133952,173.27,173.24,0.14216157]
[1748518469141,5.91316803,173.28,173.24,0.14216157]
[1748518469343,13.71916305,173.28,173.24,0.14216157]
[1748518470346,14.42689523,173.29,173.0,10.0]
[1748518470347,18.933972,173.19,173.0,10.0]
[1748518470562,7.80599502,173.12,173.06,7.80599502]
[1748518470760,7.80599502,173.12,173.07,7.80599502]
[1748518471166,7.80599502,173.12,173.07,33.80599502]
[1748518471478,7.80599502,173.12,173.02,10.33203206]
[1748518471479,0.14216157,173.13,173.08,7.80599502]
[1748518471653,0.14216157,173.13,173.02,45.63203206]
[1748518471654,7.80599502,173.11,173.02,45.63203206]
[1748518471857,7.80599502,173.1,173.02,35.3]
[1748518472073,7.80599502,173.08,173.0,9.1]
[1748518472251,7.80599502,173.08,173.02,7.80599502]
[1748518472447,0.28432314,173.09,173.04,0.14216157]
[1748518472671,0.14216157,173.09,173.04,7.94815659]
[1748518472907,8.09031816,173.09,173.04,7.94815659]
[1748518473294,8.09031816,173.09,173.04,0.14216157]
[1748518473752,0.14216157,173.09,173.04,7.94815659]
[1748518473954,0.14216157,173.09,173.04,12.37385767]
[1748518474674,0.14216157,173.1,173.04,12.37385767]
[1748518474977,12.37385767,173.1,173.04,12.37385767]
[1748518475553,12.2316961,173.09,173.04,0.14216157]
[1748518475775,0.14216157,173.1,173.04,0.14216157]
[1748518476070,12.37385767,173.1,173.04,12.37385767]
[1748518476460,18.15089347,173.1,173.04,12.37385767]
[1748518477354,0.14216157,173.1,173.04,18.15282717]
[1748518477553,12.37385767,173.1,173.04,18.15282717]
[1748518478983,12.2316961,173.09,173.04,18.15282717]
[1748518479487,12.37385767,173.1,173.06,0.14216157]
[1748518480652,12.37385767,173.1,173.05,0.14216157]
[1748518480880,12.37385767,173.1,173.05,12.37385767]
[1748518481468,12.37385767,173.1,173.05,0.14216157]
[1748518482175,18.15099227,173.1,173.05,0.14216157]
[1748518484165,0.14216157,173.11,173.05,0.14216157]
[1748518484166,18.29277696,173.11,173.05,12.37385767]
[1748518484377,0.14216157,173.11,173.07,12.37385767]
[1748518484762,0.14216157,173.11,173.07,0.14216157]
[1748518485087,0.14216157,173.11,173.08,0.14216157]
[1748518485291,27.10808685,173.12,173.08,0.14216157]
[1748518485292,12.2316961,173.12,173.08,0.14216157]
[1748518485463,0.14216157,173.12,173.11,12.2316961]
[1748518485661,5.91850168,173.12,173.11,12.2316961]
[1748518486164,5.77400542,173.19,173.12,0.14216157]
[1748518486365,5.77400542,173.19,173.15,12.2316961]
[1748518486691,0.28432314,173.18,173.15,0.14216157]
[1748518487469,0.14216157,173.18,173.15,0.14216157]
[1748518487790,0.14216157,173.16,173.15,0.14216157]
[1748518487962,0.28432314,173.16,173.15,12.2316961]
[1748518488166,0.28432314,173.16,173.14,12.2316961]
[1748518488663,0.28432314,173.16,173.1,0.14216157]
[1748518488868,0.28432314,173.16,173.13,0.14216157]
[1748518489375,0.28432314,173.16,173.13,12.37385767]
[1748518489775,0.28432314,173.14,173.13,12.37385767]
[1748518490477,0.28432314,173.14,173.08,0.14216157]
[1748518490675,0.28432314,173.14,173.13,12.2316961]
[1748518490993,0.28432314,173.14,173.13,12.37385767]
[1748518491364,0.28432314,173.14,173.13,0.14216157]
[1748518491565,0.28432314,173.14,173.13,12.37385767]
[1748518491869,6.059996,173.14,173.13,12.37385767]
[1748518492992,5.91783443,173.14,173.13,12.37385767]
[1748518493973,5.77538007,173.15,173.13,12.37385767]
[1748518494270,5.91754164,173.15,173.14,12.2316961]
[1748518495419,5.91754164,173.15,173.13,0.14216157]
[1748518495568,5.91754164,173.15,173.14,12.2316961]
[1748518498897,5.91754164,173.15,173.13,0.14216157]
[1748518499191,0.14216157,173.14,173.1,0.14216157]
[1748518499395,0.14216157,173.14,173.13,12.37385767]
[1748518499593,0.14216157,173.14,173.13,0.14216157]
[1748518499801,0.14216157,173.14,173.13,12.37385767]
[1748518501603,5.91783443,173.14,173.13,12.37385767]
[1748518503074,0.28432314,173.13,173.09,26.0]
[1748518503281,0.28432314,173.13,173.12,12.37385767]
[1748518504005,20.50034577,173.13,173.01,7.9723]
[1748518504316,20.50034577,173.13,173.1,12.2316961]
[1748518504479,20.50034577,173.13,173.11,12.2316961]
[1748518505091,20.50034577,173.13,173.08,0.14216157]
[1748518505280,20.50034577,173.13,173.11,12.2316961]
[1748518506086,20.50034577,173.13,173.09,0.14216157]
[1748518506289,20.50034577,173.13,173.12,12.2316961]
[1748518506816,6.0603296,173.13,173.12,12.37385767]
[1748518507182,6.0603296,173.13,173.12,0.14216157]
[1748518507377,6.0603296,173.13,173.12,12.37385767]
[1748518507988,6.0603296,173.13,173.12,12.2316961]
[1748518509776,20.50034577,173.13,173.11,12.2316961]
[1748518512595,20.50034577,173.13,173.1,12.2316961]
[1748518513110,0.28432314,173.11,173.01,7.9723]
[1748518513283,0.28432314,173.11,173.08,12.2316961]
[1748518513284,156.84432314,173.11,173.08,12.2316961]
[1748518513481,156.84432314,173.11,173.05,0.14216157]
[1748518513682,156.84432314,173.11,173.07,12.2316961]
[1748518514205,0.28432314,173.09,173.05,0.14216157]
[1748518514399,0.28432314,173.09,173.07,12.2316961]
[1748518514703,0.28432314,173.09,173.08,12.2316961]
[1748518515791,0.28432314,173.09,173.02,0.14216157]
[1748518516111,0.28432314,173.09,173.08,12.2316961]
[1748518516923,0.28432314,173.09,173.01,0.14216157]
[1748518516924,0.28432314,173.07,173.01,0.14216157]
[1748518517099,0.28432314,173.07,173.06,12.37385767]
[1748518517489,1.81822314,173.07,173.03,0.14216157]
[1748518517700,1.81822314,173.07,173.04,12.2316961]
[1748518517900,1.81822314,173.07,173.05,12.2316961]
[1748518518112,1.81822314,173.07,173.04,12.2316961]
[1748518518514,0.28432314,173.05,173.04,12.37385767]
[1748518519408,0.28432314,173.05,173.04,0.14216157]
[1748518520411,6.06299982,173.05,173.04,0.14216157]
[1748518522625,32.74138762,173.05,172.95,0.21324235]
[1748518522790,0.28432314,173.03,172.99,0.14216157]
[1748518522988,0.28432314,173.03,172.99,12.37385767]
[1748518523830,0.14216157,173.01,172.99,12.37385767]
[1748518524237,0.14216157,173.01,173.0,12.2316961]
[1748518524719,0.28432314,173.01,173.0,0.14216157]
[1748518525091,0.28432314,173.01,172.98,12.2316961]
[1748518525299,0.28432314,173.01,172.99,12.2316961]
[1748518526321,6.06466996,173.0,172.99,12.37385767]
[1748518527729,0.28432314,172.99,172.98,12.37385767]
[1748518527899,0.28432314,172.99,172.98,0.14216157]
[1748518528446,6.0650041,172.99,172.96,12.2316961]
[1748518528598,6.0650041,172.99,172.97,0.14216157]
[1748518529741,20.51670651,172.99,172.96,12.2316961]
[1748518529928,20.51670651,172.99,172.97,0.14216157]
[1748518530133,20.51670651,172.99,172.98,12.2316961]
[1748518530331,5.92284253,172.99,172.98,12.37385767]
[1748518530636,5.78068096,172.99,172.98,12.37385767]
[1748518530836,5.78001271,173.01,172.99,0.14216157]
[1748518531018,5.92217428,173.01,173.0,12.2316961]
[1748518531342,5.78001271,173.01,173.0,12.37385767]
[1748518532147,9.28,173.02,173.0,12.37385767]
[1748518532148,15.05977633,173.02,173.01,0.14216157]
[1748518532348,15.05977633,173.02,173.01,12.37385767]
[1748518533212,5.77834277,173.06,173.01,12.37385767]
[1748518533531,5.92050434,173.06,173.05,12.37385767]
[1748518533728,5.77834277,173.06,173.05,12.37385767]
[1748518534539,0.14216157,173.07,173.05,12.37385767]
[1748518534728,0.14216157,173.07,173.06,12.2316961]
[1748518537046,5.77800889,173.07,173.06,12.37385767]
[1748518537263,5.77700751,173.1,173.07,0.14216157]
[1748518537548,6.06133065,173.1,173.09,12.37385767]
[1748518538123,5.91916908,173.1,173.09,12.37385767]
[1748518538737,5.91916908,173.1,173.04,0.14216157]
[1748518538950,5.91916908,173.1,173.09,12.37385767]
[1748518550342,5.91916908,173.1,173.09,0.14216157]
[1748518550544,5.91916908,173.1,173.09,12.37385767]
[1748518554149,5.91916908,173.1,173.09,0.14216157]
[1748518554345,5.91916908,173.1,173.09,12.37385767]
[1748518557752,5.91916908,173.1,173.09,0.14216157]
[1748518557959,5.91916908,173.1,173.09,12.37385767]
[1748518566196,14.5837485,173.12,173.1,0.14216157]
[1748518566197,5.77634011,173.12,173.1,0.14216157]
[1748518566483,5.77567286,173.14,173.12,0.14216157]
[1748518566692,5.77567286,173.14,173.13,12.37385767]
[1748518569010,6.05932891,173.16,173.13,12.37385767]
[1748518569895,6.05932891,173.16,173.1,12.2316961]
[1748518569896,5.77500577,173.16,173.15,12.37385767]
[1748518574193,9.32,173.17,173.16,0.14216157]
[1748518574394,9.32,173.17,173.16,12.37385767]
[1748518576007,15.09467228,173.17,173.16,12.37385767]
[1748518577108,15.09467228,173.17,173.13,0.14216157]
[1748518577289,15.09467228,173.17,173.16,12.37385767]
[1748518583875,0.28432314,173.2,173.17,0.14216157]
[1748518583876,5.91616699,173.19,173.17,0.14216157]
[1748518584077,0.14216157,173.18,173.16,0.14216157]
[1748518584516,0.14216157,173.18,173.16,12.37385767]
[1748518585213,6.05899542,173.17,173.16,12.37385767]
[1748518587475,6.05899542,173.17,173.15,12.2316961]
[1748518587700,5.91716734,173.16,173.15,12.37385767]
[1748518590206,0.14216157,173.15,173.13,12.2316961]
[1748518590517,0.14216157,173.15,173.12,12.2316961]
[1748518591087,0.28432314,173.13,173.12,12.37385767]
[1748518591401,0.28432314,173.13,173.12,0.14216157]
[1748518592281,0.28432314,173.13,173.11,0.14216157]
[1748518593286,6.06066325,173.12,173.11,0.14216157]
[1748518593981,0.14216157,173.11,173.1,12.37385767]
[1748518595590,5.91883536,173.11,173.1,12.37385767]
[1748518597325,6.06099693,173.11,173.07,26.0]
[1748518597495,0.14216157,173.1,173.09,0.14216157]
[1748518598603,0.14216157,173.1,173.09,12.37385767]
[1748518599705,6.06133065,173.1,173.09,12.37385767]
[1748518601146,5.91916908,173.1,173.09,12.37385767]
[1748518602619,5.77700751,173.1,173.09,12.37385767]
[1748518604497,5.91850168,173.12,173.09,12.37385767]
[1748518604704,5.77634011,173.12,173.11,12.37385767]
[1748518607924,5.91850168,173.12,173.11,0.14216157]
[1748518608332,5.91850168,173.12,173.11,12.37385767]
[1748518614930,5.77634011,173.12,173.11,12.37385767]
[1748518616565,5.77609136,173.13,173.12,0.14216157]
[1748518616719,5.77609136,173.13,173.12,12.37385767]
[1748518616917,5.77567286,173.14,173.12,12.37385767]
[1748518617129,5.91783443,173.14,173.13,12.2316961]
[1748518618127,5.91783443,173.14,173.1,0.14216157]
[1748518618434,5.91783443,173.14,173.13,12.37385767]
[1748518619947,5.91783443,173.14,173.13,7.9634464]
[1748518620117,5.77567286,173.14,173.13,7.9634464]
[1748518620723,15.19616699,173.19,173.14,0.14216157]
[1748518620924,0.14216157,173.18,173.17,7.9634464]
[1748518621333,0.14216157,173.18,173.17,0.14216157]